[Event "WYCC 2018 G18"]
[Site "Halkidiki"]
[Date "2018.10.21"]
[Round "3"]
[White "Cibikova, Sofia Anna"]
[Black "Greibrokk, Ingrid"]
[Result "1-0"]
[ECO "B24"]
[WhiteElo "1809"]
[BlackElo "2018"]
[Annotator "NA"]
[PlyCount "137"]
[EventDate "2018.10.20"]
[EventType "swiss"]
[EventCountry "GRE"]
[SourceTitle "playchess.com"]
[Source "ChessBase"]
[SourceQuality "1"]
[TimeControl "40/5400+30:1800+30"]

1. e4 {[%emt 0:00:00]} c5 {[%emt 0:00:00]} 2. Nc3 {[%emt 0:00:00]} Nc6 {[%emt 0:00:08]} 3. g3 {[%emt 0:00:07]} g6 {[%emt 0:00:07]} 4. Bg2 {[%emt 0:00:15]} Bg7 {[%emt 0:00:07]} 5. d3 {[%emt 0:00:46]} e6 {[%emt 0:00:24]} 6. f4 {[%emt 0:01:10]} Nge7 {[%emt 0:00:14]} 7. Nf3 {[%emt 0:01:37]} d5 {[%emt 0:01:47]} 8. O-O {[%emt 0:03:55]} O-O {[%emt 0:01:30]} 9. Re1 {[%emt 0:05:09] B24: Closed Sicilian: 3 g3 sidelines} (9. Kh1 b6 10. Qe1 Bb7 11. g4 Nd4 12. Qf2 dxe4 13. dxe4 Nec6 14. Be3 Nxf3 15. Bxf3 Nd4 16. Bg2 Qe7 17. Rae1 {0-1 (28) Tomilova,E (2328)-Voit,D (2352) Sochi 2018}) 9... dxe4 {[%emt 0:12:42]} 10. Nxe4 {[%emt 0:05:08]} b6 {[%emt 0:00:48]} 11. Rb1 $146 {[%emt 0:03:47]} ({Predecessor:} 11. c3 Bb7 12. Qe2 Qd7 13. Ne5 Nxe5 14. fxe5 Bxe5 15. Nxc5 bxc5 16. Qxe5 Bxg2 {1-0 (28) Kirilloff,V-Ramos,F LSS email 2006}) 11... Bb7 {[%emt 0:01:38]} 12. Bd2 {[%emt 0:05:32]} Nf5 {[%emt 0:10:07]} 13. Bc3 {[%emt 0:02:45]} Nfd4 {[%emt 0:00:58]} 14. Qd2 {[%emt 0:05:00]} Qc7 {[%emt 0:01:43]} 15. Qf2 {[%emt 0:05:17]} Rfd8 {[%emt 0:06:26]} 16. Nxd4 {[%emt 0:02:20]} cxd4 {[%emt 0:04:43]} 17. Bd2 {[%emt 0:01:04]} Rac8 {[%emt 0:00:37]} 18. Rbc1 {[%emt 0:04:24]} Qb8 {[%emt 0:20:31]} 19. Bh3 {[%emt 0:04:19]} Ne7 {[%emt 0:06:12]} 20. Ng5 {[%emt 0:06:33]} Nf5 {[%emt 0:05:30]} 21. Nf3 {[%emt 0:04:31]} Qd6 {[%emt 0:06:46]} 22. Ne5 {[%emt 0:04:30]} Bxe5 {[%emt 0:06:36]} 23. Rxe5 {[%emt 0:01:22]} Qc6 {[%emt 0:01:04]} 24. Bg2 {[%emt 0:01:52]} Qxg2+ {[%emt 0:00:05]} 25. Qxg2 {[%emt 0:00:06]} Bxg2 {[%emt 0:00:03]} 26. Kxg2 {[%emt 0:00:09]} Rc6 {[%emt 0:00:29]} 27. Kf2 {[%emt 0:03:18]} Nh6 {[%emt 0:05:40]} 28. h3 {[%emt 0:01:29]} f6 {[%emt 0:01:17]} 29. Re2 {[%emt 0:01:35]} Nf7 {[%emt 0:01:43]} 30. Bb4 {[%emt 0:01:50]} e5 {[%emt 0:00:53]} 31. Bd2 {[%emt 0:03:45]} a5 {[%emt 0:02:31]} 32. Kf3 {[%emt 0:02:44]} Rd5 {[%emt 0:01:01]} 33. a4 {[%emt 0:01:47]} f5 {[%emt 0:01:23]} 34. Ree1 {[%emt 0:02:05]} Kg7 {[%emt 0:00:27]} 35. fxe5 {[%emt 0:00:19]} Rxe5 {[%emt 0:00:31]} 36. Rxe5 {[%emt 0:00:33]} Nxe5+ {[%emt 0:00:02]} 37. Kf2 {[%emt 0:00:54]} Kf6 {[%emt 0:00:20]} 38. Bf4 {[%emt 0:00:38]} g5 {[%emt 0:00:46]} 39. Bxe5+ {[%emt 0:00:32]} Kxe5 {[%emt 0:00:01]} 40. c4 {[%emt 0:00:00]} Kd6 {[%emt 0:00:00]} 41. Re1 {[%emt 0:03:16]} Rc7 {[%emt 0:12:12]} 42. g4 {[%emt 0:06:02]} Rf7 {[%emt 0:02:03]} 43. Kg3 {[%emt 0:01:47]} h6 {[%emt 0:03:03]} 44. Re8 {[%emt 0:02:24]} Rf6 {[%emt 0:01:30]} 45. Rd8+ {[%emt 0:01:36]} Kc5 {[%emt 0:00:13]} 46. Rd5+ {[%emt 0:01:09]} Kb4 {[%emt 0:00:13]} 47. Rb5+ {[%emt 0:00:27]} Kxa4 {[%emt 0:00:08]} 48. gxf5 {[%emt 0:00:20]} h5 {[%emt 0:01:23]} 49. Kf3 {[%emt 0:03:25]} Rh6 $2 {[%emt 0:06:49]} (49... Rd6 50. Ke4 g4 51. hxg4 hxg4) 50. Ke4 {[%emt 0:07:15]} g4 {[%emt 0:00:29]} 51. hxg4 {[%emt 0:01:15]} h4 {[%emt 0:00:05]} 52. Kxd4 {[%emt 0:02:41]} h3 {[%emt 0:01:36]} 53. Kc3 {[%emt 0:00:39]} Rd6 {[%emt 0:00:54]} 54. f6 {[%emt 0:00:43]} (54. Re5 $142 Rxd3+ 55. Kxd3 b5 56. Rxb5 h2 57. Kc3 (57. b3+ Ka3 $11) 57... h1=Q 58. b3+ Ka3 59. Rxa5#) 54... h2 {[%emt 0:01:45]} 55. Rh5 {[%emt 0:00:11]} Rxf6 {[%emt 0:03:37]} 56. Rxh2 {[%emt 0:00:10]} Rf1 {[%emt 0:01:23]} 57. Rg2 {[%emt 0:02:18]} b5 {[%emt 0:02:07]} 58. cxb5 {[%emt 0:00:21]} Rf6 {[%emt 0:00:37]} 59. g5 {[%emt 0:00:48]} Rg6 {[%emt 0:00:10]} 60. b6 {[%emt 0:02:28]} Rxb6 {[%emt 0:01:11]} 61. g6 {[%emt 0:00:12]} Rb3+ {[%emt 0:00:32]} 62. Kc2 {[%emt 0:00:15]} Rb8 {[%emt 0:00:27]} 63. g7 {[%emt 0:00:09]} Rc8+ {[%emt 0:00:34]} 64. Kd2 {[%emt 0:00:41]} Rg8 {[%emt 0:00:08]} 65. d4 {[%emt 0:00:12]} Kb3 {[%emt 0:00:49]} 66. Kd3 {[%emt 0:00:20]} a4 {[%emt 0:00:17]} 67. d5 {[%emt 0:00:19]} a3 {[%emt 0:00:04]} 68. bxa3 {[%emt 0:00:05]} Kxa3 {[%emt 0:00:30]} 69. Kd4 {[%emt 0:00:08]} 1-0

[Event "WYCC 2018 G18"]
[Site "Halkidiki"]
[Date "2018.10.21"]
[Round "3"]
[White "Mocanu, Valeria"]
[Black "Tsivelekidou, Evgenia"]
[Result "1-0"]
[ECO "B11"]
[WhiteElo "1800"]
[BlackElo "1891"]
[Annotator "NA"]
[PlyCount "83"]
[EventDate "2018.10.20"]
[EventType "swiss"]
[EventCountry "GRE"]
[SourceTitle "playchess.com"]
[Source "ChessBase"]
[SourceQuality "1"]
[TimeControl "40/5400+30:1800+30"]

1. e4 {[%emt 0:00:00]} c6 {[%emt 0:00:00]} 2. Nc3 {[%emt 0:00:00]} d5 {[%emt 0:00:00]} 3. Nf3 {[%emt 0:00:00]} Bg4 {[%emt 0:00:00]} 4. h3 {[%emt 0:00:00]} Bxf3 {[%emt 0:00:00]} 5. Qxf3 {[%emt 0:00:04]} Nf6 {[%emt 0:00:00]} 6. d3 {[%emt 0:00:21]} e6 {[%emt 0:00:06]} 7. g3 {[%emt 0:03:18]} Bb4 {[%emt 0:01:04]} 8. Bd2 {[%emt 0:00:54]} Qb6 {[%emt 0:04:46]} 9. O-O-O {[%emt 0:06:45]} d4 {[%emt 0:05:07]} 10. Ne2 {[%emt 0:04:29]} Bxd2+ {[%emt 0:02:58]} 11. Rxd2 {[%emt 0:00:08]} Nbd7 {[%emt 0:02:40]} 12. g4 {[%emt 0:12:34]} c5 {[%emt 0:03:13]} 13. Rd1 {[%emt 0:11:30]} Qa5 {[%emt 0:09:29]} 14. Kb1 {[%emt 0:00:45]} b5 {[%emt 0:03:51]} 15. Qg3 {[%emt 0:04:51]} Qb6 {[%emt 0:03:28]} 16. e5 {[%emt 0:06:33]} Ng8 {[%emt 0:06:02]} 17. f4 {[%emt 0:01:41]} Ne7 {[%emt 0:01:33]} 18. Bg2 {[%emt 0:00:57]} Rb8 {[%emt 0:04:56]} 19. Rhf1 {[%emt 0:01:50]} Qc7 {[%emt 0:04:22]} 20. c3 {[%emt 0:07:45]} dxc3 {[%emt 0:14:22]} 21. Nxc3 {[%emt 0:00:41]} f5 {[%emt 0:02:57]} 22. exf6 {[%emt 0:14:32]} Nxf6 {[%emt 0:00:23]} 23. Rde1 {[%emt 0:04:36]} b4 {[%emt 0:08:37]} 24. Ne4 {[%emt 0:00:48]} Nxe4 {[%emt 0:01:31]} 25. Rxe4 {[%emt 0:00:49]} O-O {[%emt 0:05:10]} 26. Rxe6 {[%emt 0:01:22]} Qd7 {[%emt 0:01:15]} 27. f5 {[%emt 0:02:38]} Nd5 {[%emt 0:01:19]} 28. Bxd5 {[%emt 0:09:49]} Qxd5 {[%emt 0:00:08]} 29. Qf3 {[%emt 0:02:11]} Qd7 {[%emt 0:04:15]} 30. Rfe1 {[%emt 0:00:20]} b3 {[%emt 0:00:44]} 31. a3 {[%emt 0:00:34]} Rbd8 {[%emt 0:01:29]} 32. d4 {[%emt 0:02:22]} Qxd4 {[%emt 0:02:15]} 33. Qxb3 {[%emt 0:00:11]} Rb8 {[%emt 0:02:58]} 34. Qc2 {[%emt 0:00:13]} Rfd8 {[%emt 0:01:36]} 35. Rc1 {[%emt 0:00:28]} c4 {[%emt 0:00:39]} 36. Re2 {[%emt 0:01:12]} Rdc8 {[%emt 0:01:05]} 37. Qc3 {[%emt 0:00:38]} Qd6 {[%emt 0:01:43]} 38. Rd2 {[%emt 0:00:33]} Qe7 {[%emt 0:00:56]} 39. Rdc2 {[%emt 0:00:30]} Qe4 {[%emt 0:01:01]} 40. Re1 {[%emt 0:00:00]} Qd5 {[%emt 0:00:00]} 41. Re7 {[%emt 0:01:24]} Qd1+ {[%emt 0:06:52]} 42. Ka2 {[%emt 0:01:23]} 1-0

[Event "WYCC 2018 G18"]
[Site "Halkidiki"]
[Date "2018.10.21"]
[Round "3"]
[White "Perry, Tal"]
[Black "Du, Yuxin"]
[Result "1/2-1/2"]
[ECO "B14"]
[WhiteElo "1702"]
[BlackElo "2011"]
[Annotator "NA"]
[PlyCount "71"]
[EventDate "2018.10.20"]
[EventType "swiss"]
[EventCountry "GRE"]
[SourceTitle "playchess.com"]
[Source "ChessBase"]
[SourceQuality "1"]
[TimeControl "40/5400+30:1800+30"]

1. e4 {[%emt 0:00:00]} c6 {[%emt 0:00:00]} 2. d4 {[%emt 0:00:00]} d5 {[%emt 0:00:03]} 3. exd5 {[%emt 0:00:00]} cxd5 {[%emt 0:00:05]} 4. c4 {[%emt 0:00:00]} Nf6 {[%emt 0:01:10]} 5. Nc3 {[%emt 0:00:07]} e6 {[%emt 0:00:19]} 6. Nf3 {[%emt 0:00:15]} Nc6 {[%emt 0:00:21]} 7. c5 {[%emt 0:00:19]} Ne4 {[%emt 0:01:32]} 8. Qc2 {[%emt 0:05:27]} f5 {[%emt 0:05:59]} 9. Bb5 {[%emt 0:01:43]} Bd7 {[%emt 0:28:11]} 10. Bxc6 {[%emt 0:00:55]} Bxc6 {[%emt 0:00:16]} 11. Ne5 {[%emt 0:01:33]} Be7 {[%emt 0:03:15]} 12. O-O {[%emt 0:01:40]} Bf6 {[%emt 0:04:25]} 13. Nxc6 {[%emt 0:01:25]} bxc6 {[%emt 0:00:06]} 14. Ne2 {[%emt 0:01:15]} O-O {[%emt 0:04:45]} 15. Qa4 {[%emt 0:03:40]} Qd7 {[%emt 0:05:40]} 16. f3 {[%emt 0:02:08]} Ng5 {[%emt 0:00:09]} 17. Bf4 {[%emt 0:03:20]} Nf7 {[%emt 0:03:28]} 18. Rab1 {[%emt 0:03:13]} Rfe8 {[%emt 0:05:17]} 19. Bg3 {[%emt 0:20:29]} e5 {[%emt 0:05:39]} 20. dxe5 {[%emt 0:04:04]} Nxe5 {[%emt 0:00:09]} 21. Bxe5 {[%emt 0:02:21]} Bxe5 {[%emt 0:00:33]} 22. Nd4 {[%emt 0:01:36]} Bxd4+ {[%emt 0:00:51]} 23. Qxd4 {[%emt 0:00:04]} Re2 {[%emt 0:07:02]} 24. Rfe1 {[%emt 0:01:25]} Rae8 {[%emt 0:05:39]} 25. Rxe2 {[%emt 0:03:57]} Rxe2 {[%emt 0:00:07]} 26. Kf1 {[%emt 0:08:46]} Qe7 {[%emt 0:08:06]} 27. Qc3 {[%emt 0:09:35]} Re3 {[%emt 0:03:35]} 28. Qd4 {[%emt 0:03:59]} f4 {[%emt 0:03:21]} 29. b4 {[%emt 0:01:23]} Qh4 {[%emt 0:00:52]} 30. h3 {[%emt 0:06:30]} Qg3 {[%emt 0:01:08]} 31. b5 {[%emt 0:00:57]} Rxf3+ {[%emt 0:01:28]} 32. gxf3 {[%emt 0:00:31]} Qxf3+ {[%emt 0:00:04]} 33. Kg1 {[%emt 0:07:29]} Qg3+ {[%emt 0:00:07]} 34. Kf1 {[%emt 0:00:23]} Qf3+ {[%emt 0:00:15]} 35. Kg1 {[%emt 0:00:09]} Qg3+ {[%emt 0:00:05]} 36. Kf1 {[%emt 0:00:06]} 1/2-1/2

[Event "WYCC 2018 G18"]
[Site "Halkidiki"]
[Date "2018.10.21"]
[Round "3"]
[White "Rakic, Tijana"]
[Black "Nguyen, Hong Ngoc"]
[Result "1/2-1/2"]
[ECO "A08"]
[WhiteElo "1651"]
[BlackElo "1861"]
[Annotator "NA"]
[PlyCount "51"]
[EventDate "2018.10.20"]
[EventType "swiss"]
[EventCountry "GRE"]
[SourceTitle "playchess.com"]
[Source "ChessBase"]
[SourceQuality "1"]
[TimeControl "40/5400+30:1800+30"]

1. e4 {[%emt 0:00:00]} e6 {[%emt 0:00:00]} 2. d3 {[%emt 0:00:00]} d5 {[%emt 0:00:04]} 3. Nd2 {[%emt 0:01:29]} Nf6 {[%emt 0:01:04]} 4. Ngf3 {[%emt 0:00:26]} c5 {[%emt 0:00:34]} 5. g3 {[%emt 0:00:27]} Be7 {[%emt 0:00:46]} 6. Bg2 {[%emt 0:00:12]} Nc6 {[%emt 0:00:44]} 7. O-O {[%emt 0:00:28]} O-O {[%emt 0:00:16]} 8. Re1 {[%emt 0:01:42]} b6 {[%emt 0:01:25]} 9. e5 {[%emt 0:00:17]} Nd7 {[%emt 0:00:20]} 10. Nf1 {[%emt 0:00:27]} Bb7 {[%emt 0:01:38]} 11. h4 {[%emt 0:01:58]} Re8 {[%emt 0:01:38]} 12. N1h2 {[%emt 0:01:13]} f6 {[%emt 0:02:03]} 13. exf6 {[%emt 0:02:57]} Bxf6 {[%emt 0:00:14]} 14. Ng5 {[%emt 0:05:15]} Nf8 {[%emt 0:01:10]} 15. Qh5 {[%emt 0:12:05]} Qd7 {[%emt 0:01:24]} 16. Ng4 {[%emt 0:06:20]} Bxg5 {[%emt 0:02:41]} 17. Qxg5 {[%emt 0:03:59]} Qe7 {[%emt 0:02:04]} 18. Qh5 {[%emt 0:08:12]} Qf7 {[%emt 0:05:12]} 19. Qg5 {[%emt 0:00:13]} Qe7 {[%emt 0:01:51]} 20. Ne5 {[%emt 0:00:30]} Qxg5 {[%emt 0:03:19]} 21. Bxg5 {[%emt 0:00:15]} Nxe5 {[%emt 0:02:59]} 22. Rxe5 {[%emt 0:00:35]} Nd7 {[%emt 0:00:28]} 23. Re2 {[%emt 0:00:21]} h6 {[%emt 0:01:03]} 24. Bd2 {[%emt 0:00:50]} Re7 {[%emt 0:00:44]} 25. Rae1 {[%emt 0:01:00]} Rae8 {[%emt 0:00:21]} 26. a4 {[%emt 0:09:44]} 1/2-1/2

[Event "WYCC 2018 G18"]
[Site "Halkidiki"]
[Date "2018.10.21"]
[Round "3"]
[White "Yurdakul, Didem Nuray"]
[Black "Manova, Ivana"]
[Result "0-1"]
[ECO "C55"]
[WhiteElo "1604"]
[BlackElo "1951"]
[Annotator "NA"]
[PlyCount "78"]
[EventDate "2018.10.20"]
[EventType "swiss"]
[EventCountry "GRE"]
[SourceTitle "playchess.com"]
[Source "ChessBase"]
[SourceQuality "1"]
[TimeControl "40/5400+30:1800+30"]

1. e4 e5 {[%emt 0:00:00]} 2. Nf3 {[%emt 0:00:00]} Nc6 {[%emt 0:00:00]} 3. d4 {[%emt 0:00:00]} exd4 {[%emt 0:00:00]} 4. Bc4 {[%emt 0:00:19]} Nf6 {[%emt 0:00:30]} 5. e5 {[%emt 0:00:49]} d5 {[%emt 0:00:24]} 6. Bb5 {[%emt 0:00:25]} Ne4 {[%emt 0:00:21]} 7. Nxd4 {[%emt 0:00:21]} Bc5 {[%emt 0:00:41]} 8. Be3 {[%emt 0:01:17]} Bd7 {[%emt 0:01:08]} 9. Bxc6 {[%emt 0:01:23]} bxc6 {[%emt 0:00:26]} 10. O-O {[%emt 0:00:28]} O-O {[%emt 0:01:01]} 11. f3 {[%emt 0:00:50]} Ng5 {[%emt 0:00:39]} 12. f4 {[%emt 0:00:45]} Ne4 {[%emt 0:00:08]} 13. Nd2 {[%emt 0:00:24]} Nxd2 {[%emt 0:00:55]} 14. Qxd2 {[%emt 0:00:29]} f6 {[%emt 0:03:45]} 15. Nb3 {[%emt 0:02:43]} Bb6 {[%emt 0:02:01]} 16. Bc5 {[%emt 0:02:18]} Qe7 {[%emt 0:04:28]} 17. Qc3 {[%emt 0:05:45]} fxe5 {[%emt 0:09:44]} 18. fxe5 {[%emt 0:00:12]} Qg5 {[%emt 0:08:07]} 19. Rxf8+ {[%emt 0:04:57]} Rxf8 {[%emt 0:00:45]} 20. Rf1 {[%emt 0:00:24]} Rxf1+ {[%emt 0:10:58]} 21. Kxf1 {[%emt 0:00:07]} Qf4+ {[%emt 0:03:05]} 22. Qf3 {[%emt 0:12:38]} Qc4+ {[%emt 0:01:24]} 23. Qe2 {[%emt 0:00:08]} Bg4 {[%emt 0:16:45]} 24. Qxc4 {[%emt 0:08:51]} dxc4 {[%emt 0:00:02]} 25. Bxb6 {[%emt 0:00:09]} cxb3 {[%emt 0:06:46]} 26. Bd4 {[%emt 0:00:10]} c5 {[%emt 0:01:05]} 27. Bc3 {[%emt 0:00:34]} bxa2 {[%emt 0:05:35]} 28. b3 {[%emt 0:00:43]} Bd1 29. Kf2 Bxc2 {[%emt 0:01:10]} 30. Ke3 {[%emt 0:00:39]} g5 {[%emt 0:02:28]} 31. Kd2 {[%emt 0:02:00]} Bxb3 {[%emt 0:00:47]} 32. Kc1 {[%emt 0:00:15]} Kf7 {[%emt 0:02:28]} 33. Kb2 {[%emt 0:00:07]} Bd5 {[%emt 0:00:41]} 34. g3 {[%emt 0:00:35]} Ke6 {[%emt 0:02:34]} 35. g4 {[%emt 0:03:43]} Bf3 {[%emt 0:03:48]} 36. Kxa2 {[%emt 0:00:07]} Bxg4 {[%emt 0:00:05]} 37. Kb3 {[%emt 0:00:04]} Kd5 {[%emt 0:01:05]} 38. Ka4 {[%emt 0:01:03]} Be2 {[%emt 0:00:46]} 39. Kb3 {[%emt 0:03:29]} Bc4+ {[%emt 0:01:43]} 0-1

[Event "WYCC 2018 G18"]
[Site "Halkidiki"]
[Date "2018.10.21"]
[Round "3"]
[White "Horn, Caro"]
[Black "Koehler, Inken"]
[Result "0-1"]
[ECO "B41"]
[WhiteElo "1133"]
[BlackElo "1934"]
[Annotator "NA"]
[PlyCount "140"]
[EventDate "2018.10.20"]
[EventType "swiss"]
[EventCountry "GRE"]
[SourceTitle "playchess.com"]
[Source "ChessBase"]
[SourceQuality "1"]
[TimeControl "40/5400+30:1800+30"]

1. e4 {[%emt 0:00:00]} c5 {[%emt 0:00:00]} 2. Nf3 {[%emt 0:01:26]} e6 {[%emt 0:00:00]} 3. d4 {[%emt 0:01:43]} cxd4 {[%emt 0:00:09]} 4. Nxd4 {[%emt 0:01:44]} a6 {[%emt 0:00:28]} 5. c4 {[%emt 0:02:06]} Qc7 {[%emt 0:01:00]} 6. Nc3 {[%emt 0:03:02]} Nf6 {[%emt 0:01:26]} 7. Bd2 {[%emt 0:05:09]} Nc6 {[%emt 0:03:37]} 8. Nf3 {[%emt 0:04:01]} d6 {[%emt 0:03:00]} 9. Be2 {[%emt 0:02:07]} Be7 {[%emt 0:01:34]} 10. Qc2 {[%emt 0:02:43]} O-O {[%emt 0:03:12]} 11. O-O {[%emt 0:01:14]} Ne5 {[%emt 0:06:02]} 12. Nxe5 {[%emt 0:06:03]} dxe5 {[%emt 0:00:08]} 13. Rad1 {[%emt 0:02:27]} Bd7 {[%emt 0:03:20]} 14. Qd3 {[%emt 0:02:56]} Bc6 {[%emt 0:03:13]} 15. Qg3 {[%emt 0:03:25]} Nxe4 {[%emt 0:03:11]} 16. Nxe4 {[%emt 0:02:09]} Bxe4 {[%emt 0:00:06]} 17. Bh6 {[%emt 0:02:03]} Bg6 {[%emt 0:01:00]} 18. Bd2 {[%emt 0:01:56]} Rfd8 {[%emt 0:01:43]} 19. Bc3 {[%emt 0:00:29]} Bd6 {[%emt 0:04:12]} 20. Rfe1 {[%emt 0:01:43]} e4 {[%emt 0:01:59]} 21. Qh4 {[%emt 0:00:54]} Bc5 {[%emt 0:02:05]} 22. Bh5 {[%emt 0:00:58]} Rxd1 {[%emt 0:22:03]} 23. Rxd1 {[%emt 0:04:06]} Be7 {[%emt 0:01:35]} 24. Qh3 {[%emt 0:02:27]} Rd8 {[%emt 0:01:49]} 25. Rf1 {[%emt 0:00:22]} Rd3 {[%emt 0:01:40]} 26. Qg4 {[%emt 0:01:40]} Qxc4 {[%emt 0:04:09]} 27. Bxg6 {[%emt 0:00:21]} hxg6 {[%emt 0:00:12]} 28. h3 {[%emt 0:00:46]} Qd5 {[%emt 0:01:42]} 29. Re1 {[%emt 0:02:34]} e3 {[%emt 0:07:09]} 30. fxe3 {[%emt 0:00:42]} Bc5 {[%emt 0:00:45]} 31. Qg3 {[%emt 0:01:13]} Qe4 {[%emt 0:03:54]} 32. Kh1 {[%emt 0:00:30]} Rxe3 {[%emt 0:01:33]} 33. Rxe3 {[%emt 0:00:41]} Qxe3 {[%emt 0:01:33]} 34. Qxe3 {[%emt 0:00:33]} Bxe3 {[%emt 0:00:04]} 35. Kh2 {[%emt 0:00:14]} f6 {[%emt 0:00:49]} 36. Kg3 {[%emt 0:00:12]} Kf7 {[%emt 0:00:54]} 37. Kf3 {[%emt 0:00:23]} Ba7 {[%emt 0:01:49]} 38. Ke4 {[%emt 0:00:43]} f5+ {[%emt 0:01:39]} 39. Ke5 {[%emt 0:00:20]} Bb8+ {[%emt 0:00:25]} 40. Kd4 {[%emt 0:00:00]} g5 {[%emt 0:00:00]} 41. Ke3 {[%emt 0:01:12]} e5 {[%emt 0:02:00]} 42. Kf3 {[%emt 0:00:28]} e4+ {[%emt 0:01:28]} 43. Ke2 {[%emt 0:00:36]} g6 {[%emt 0:00:42]} 44. Kf2 {[%emt 0:00:42]} Ke6 {[%emt 0:02:01]} 45. Ke2 {[%emt 0:00:43]} f4 {[%emt 0:00:24]} 46. Kf2 {[%emt 0:00:51]} Kf5 {[%emt 0:00:17]} 47. Ke2 {[%emt 0:00:33]} g4 {[%emt 0:00:15]} 48. hxg4+ {[%emt 0:00:42]} Kxg4 {[%emt 0:00:06]} 49. Kf2 {[%emt 0:00:06]} Ba7+ {[%emt 0:00:31]} 50. Kf1 {[%emt 0:00:30]} g5 {[%emt 0:00:55]} 51. Be1 {[%emt 0:00:21]} Kf5 {[%emt 0:00:18]} 52. Ke2 {[%emt 0:01:00]} g4 {[%emt 0:00:12]} 53. Bc3 {[%emt 0:01:23]} g3 {[%emt 0:00:41]} 54. Be1 {[%emt 0:00:24]} Kg4 {[%emt 0:00:06]} 55. Kf1 {[%emt 0:01:06]} f3 {[%emt 0:00:56]} 56. gxf3+ {[%emt 0:00:42]} exf3 {[%emt 0:00:08]} 57. Bxg3 {[%emt 0:02:00]} Kxg3 {[%emt 0:00:07]} 58. b3 {[%emt 0:00:07]} b5 {[%emt 0:00:11]} 59. a4 {[%emt 0:00:31]} bxa4 {[%emt 0:00:08]} 60. bxa4 {[%emt 0:00:12]} a5 {[%emt 0:00:04]} 61. Ke1 {[%emt 0:00:29]} Kg2 {[%emt 0:00:06]} 62. Kd2 {[%emt 0:00:39]} f2 {[%emt 0:00:06]} 63. Ke2 {[%emt 0:01:24]} f1=Q+ {[%emt 0:00:07]} 64. Kd2 {[%emt 0:00:22]} Kf3 {[%emt 0:00:20]} 65. Kc3 {[%emt 0:00:31]} Ke4 {[%emt 0:00:25]} 66. Kc2 {[%emt 0:00:27]} Qd3+ {[%emt 0:00:08]} 67. Kc1 {[%emt 0:00:22]} Be3+ {[%emt 0:00:44]} 68. Kb2 {[%emt 0:00:12]} Bd4+ {[%emt 0:00:47]} 69. Kc1 {[%emt 0:00:21]} Qe2 {[%emt 0:00:05]} 70. Kb1 {[%emt 0:00:28]} Qb2# {[%emt 0:00:05]} 0-1

[Event "WYCC 2018 G18"]
[Site "Halkidiki"]
[Date "2018.10.22"]
[Round "4"]
[White "Sargsyan, Anna M."]
[Black "Kiolbasa, Oliwia"]
[Result "1-0"]
[ECO "D25"]
[WhiteElo "2331"]
[BlackElo "2254"]
[Annotator "NA"]
[PlyCount "127"]
[EventDate "2018.10.20"]
[EventType "swiss"]
[EventCountry "GRE"]
[SourceTitle "playchess.com"]
[Source "ChessBase"]
[SourceQuality "1"]
[TimeControl "40/5400+30:1800+30"]

1. d4 {[%emt 0:00:00]} d5 {[%emt 0:00:00]} 2. c4 {[%emt 0:00:40]} dxc4 {[%emt 0:00:01]} 3. Nf3 {[%emt 0:00:07]} Nf6 {[%emt 0:00:19]} 4. e3 {[%emt 0:00:15]} a6 {[%emt 0:00:45]} 5. Bxc4 {[%emt 0:00:12]} b5 {[%emt 0:00:28]} 6. Be2 {[%emt 0:00:15]} Bb7 {[%emt 0:01:00]} 7. O-O {[%emt 0:00:39]} e6 {[%emt 0:01:52]} 8. b3 {[%emt 0:01:02]} Nbd7 {[%emt 0:08:35]} 9. Bb2 {[%emt 0:00:47]} c5 {[%emt 0:00:21]} 10. Nbd2 {[%emt 0:00:08]} Be7 {[%emt 0:05:24]} 11. Rc1 {[%emt 0:01:18] D27: Queen's Gambit Accepted: Classical main line: 7 e4!? and 7 a4} O-O {[%emt 0:03:08]} 12. dxc5 {[%emt 0:03:35]} Nxc5 {[%emt 0:16:54]} 13. Nd4 $146 {[%emt 0:06:58]} ({Predecessor:} 13. Ne5 Rc8 14. Ndf3 Qa5 15. a3 Rfd8 16. Nd4 Qb6 17. Bf3 Nfe4 18. Nd3 Bf6 19. Nxc5 Nxc5 20. Bxb7 Qxb7 21. f4 Qe4 22. Rc3 Rxd4 {0-1 (22) Donaldson,J (2396)-Sadvakasov,D (2509) Los Angeles 2000}) 13... Nd5 {[%emt 0:05:13]} 14. a4 {[%emt 0:15:52]} b4 {[%emt 0:03:27]} 15. Rc2 {[%emt 0:09:07]} Rc8 {[%emt 0:04:56]} 16. Qa1 {[%emt 0:01:55]} Bf6 {[%emt 0:01:27]} 17. Rfc1 {[%emt 0:02:36]} Qe7 {[%emt 0:00:31]} 18. a5 {[%emt 0:02:02]} Rfd8 {[%emt 0:02:27]} 19. Rc4 {[%emt 0:06:33]} Qf8 {[%emt 0:09:41]} 20. Bf1 {[%emt 0:07:21]} Be7 {[%emt 0:04:42]} 21. Qb1 {[%emt 0:04:23]} Nf6 $11 {[%emt 0:08:09]} 22. N4f3 {[%emt 0:04:45]} Bd5 {[%emt 0:07:45]} 23. Rxb4 {[%emt 0:06:08]} Rb8 {[%emt 0:04:31]} 24. Rxb8 {[%emt 0:05:00]} Rxb8 {[%emt 0:00:01]} 25. Be5 {[%emt 0:03:56]} Rb4 {[%emt 0:01:14]} 26. Bc4 {[%emt 0:01:36]} Bxc4 {[%emt 0:03:05]} 27. Rxc4 {[%emt 0:02:34]} Ncd7 {[%emt 0:00:12]} 28. Bd4 {[%emt 0:01:45]} Rb5 {[%emt 0:01:23]} 29. Qc2 {[%emt 0:01:10]} Bc5 {[%emt 0:02:57]} 30. h3 h6 {[%emt 0:01:58]} 31. Bxf6 {[%emt 0:05:24]} gxf6 {[%emt 0:00:53]} 32. Qd3 {[%emt 0:02:00]} Qe7 {[%emt 0:01:25]} 33. Rg4+ {[%emt 0:03:09]} Kh8 {[%emt 0:00:22]} 34. Nc4 {[%emt 0:00:42]} f5 {[%emt 0:00:38]} 35. Rh4 {[%emt 0:00:18]} Kg7 {[%emt 0:00:23]} 36. e4 {[%emt 0:00:13]} Nf6 {[%emt 0:01:09]} 37. exf5 {[%emt 0:00:24]} exf5 {[%emt 0:00:04]} 38. Qd2 {[%emt 0:02:02]} Ng8 {[%emt 0:00:05]} 39. Rf4 {[%emt 0:01:12]} Rxb3 {[%emt 0:00:33]} 40. Qc2 {[%emt 0:00:00]} Qb7 {[%emt 0:00:00]} 41. Rxf5 {[%emt 0:04:04]} Rb1+ 42. Kh2 {[%emt 0:00:16]} Rb5 {[%emt 0:07:12]} 43. Rf4 {[%emt 0:09:36]} Be7 {[%emt 0:08:56]} 44. g3 {[%emt 0:03:12]} Rc5 {[%emt 0:04:38]} 45. Qd3 {[%emt 0:01:35]} Qd5 {[%emt 0:02:00]} 46. Rg4+ {[%emt 0:03:47]} Kh8 {[%emt 0:01:38]} 47. Qxd5 {[%emt 0:00:53]} Rxd5 {[%emt 0:00:03]} 48. Nfe5 {[%emt 0:00:40]} f6 {[%emt 0:03:08]} 49. Ng6+ {[%emt 0:00:41]} Kh7 {[%emt 0:00:03]} 50. Nxe7 {[%emt 0:00:10]} Nxe7 {[%emt 0:00:03]} 51. Re4 {[%emt 0:00:48]} Ng6 {[%emt 0:01:53]} 52. Re6 {[%emt 0:00:40]} Rc5 {[%emt 0:00:30]} 53. Ne3 {[%emt 0:00:37]} Rxa5 {[%emt 0:00:21]} 54. Rxf6 {[%emt 0:00:02]} Ra2 {[%emt 0:00:38]} 55. Kg2 {[%emt 0:00:42]} Ne5 {[%emt 0:02:29]} 56. Rd6 {[%emt 0:02:10]} a5 {[%emt 0:00:04]} 57. g4 {[%emt 0:01:38]} a4 {[%emt 0:01:36]} 58. Kg3 {[%emt 0:01:51]} Ra3 {[%emt 0:00:31]} 59. Kf4 Nd3+ 60. Kf5 {[%emt 0:01:11]} Rb3 {[%emt 0:02:20]} 61. Rd7+ {[%emt 0:00:28]} Kg8 {[%emt 0:00:02]} 62. Nd5 {[%emt 0:02:10]} Rb5 63. Kf6 Nxf2 {[%emt 0:01:21]} 64. Ne7+ {[%emt 0:01:05]} 1-0